fUST/lending_fUST_20250630
["ID","MTS","AMOUNT","RATE_DAILY","PERIOD"]
[368661184,1751273432626,-460.0,0.0001819,2]
[368661185,1751273432635,-500.0,0.0001819,2]
[368661186,1751273432644,-536.8634431,0.0001819,2]
[368661187,1751273432653,-460.0,0.0001819,2]
[368661188,1751273432662,-462.16125666,0.0001819,2]
[368661189,1751273432672,-460.0,0.0001819,2]
[368661190,1751273432682,-460.0,0.0001819,2]
[368661191,1751273432691,-460.0,0.0001819,2]
[368661192,1751273432701,-285.76345348,0.0001819,2]
[368661193,1751273432711,-462.01930397,0.0001819,2]
[368661194,1751273432720,-460.0,0.0001819,2]
[368661195,1751273432729,-460.0,0.0001819,2]
[368661196,1751273432739,-460.0,0.0001819,2]
[368661197,1751273432748,-460.0,0.0001819,2]
[368661198,1751273432757,-460.0,0.0001819,2]
[368661199,1751273432767,-460.0,0.0001819,2]
[368661200,1751273432776,-460.0,0.0001819,2]
[368661201,1751273432786,-460.0,0.0001819,2]
[368661202,1751273432795,-460.0,0.0001819,2]
[368661203,1751273432804,-460.0,0.0001819,2]
[368661204,1751273432814,-398.85063994,0.0001819,2]
[368661205,1751273432823,-460.0,0.0001819,2]
[368661206,1751273432833,-460.0,0.0001819,2]
[368661207,1751273432842,-460.0,0.0001819,2]
[368661208,1751273432851,-497.42,0.0001819,2]
[368661209,1751273432861,-279.14863937,0.0001819,2]
[368661210,1751273432871,-539.12,0.0001819,2]
[368661211,1751273432881,-792.67,0.0001819,2]
[368661212,1751273432891,-460.0,0.0001819,2]
[368661213,1751273432900,-460.0,0.0001819,2]
[368661214,1751273432910,-460.0,0.0001819,2]
[368661215,1751273432919,-460.0,0.0001819,2]
[368661216,1751273432929,-460.0,0.0001819,2]
[368661217,1751273432938,-460.0,0.0001819,2]
[368661218,1751273432947,-460.0,0.0001819,2]
[368661219,1751273432957,-460.0,0.0001819,2]
[368661220,1751273432966,-460.0,0.0001819,2]
[368661221,1751273432975,-3664.18,0.0001819,2]
[368661222,1751273432984,-460.0,0.0001819,2]
[368661223,1751273432993,-460.0,0.0001819,2]
[368661224,1751273433002,-500.0,0.0001819,2]
[368661225,1751273433012,-460.0,0.0001819,2]
[368661226,1751273433021,-983.8,0.0001819,2]
[368661227,1751273433030,-460.0,0.0001819,2]
[368661228,1751273433040,-460.0,0.0001819,2]
[368661229,1751273433049,-460.0,0.0001819,2]
[368661230,1751273433059,-460.0,0.0001819,2]
[368661231,1751273433068,-460.0,0.0001819,2]
[368661232,1751273433078,-460.0,0.0001819,2]
[368661233,1751273433087,-460.0,0.0001819,2]
[368661234,1751273433097,-710.2,0.0001819,2]
[368661235,1751273433107,-498.03,0.0001819,2]
[368661236,1751273433116,-460.0,0.0001819,2]
[368661237,1751273433126,-460.0,0.0001819,2]
[368661238,1751273433136,-460.0,0.0001819,2]
[368661239,1751273433145,-460.0,0.0001819,2]
[368661240,1751273433155,-460.0,0.0001819,2]
[368661241,1751273433164,-460.0,0.0001819,2]
[368661242,1751273433174,-591.10189124,0.0001819,2]
[368661243,1751273433183,-366.45793168,0.0001819,2]
[368661244,1751273433196,-93.54206832,0.0001819,2]
[368661245,1751273433205,-1915.83,0.0001819,2]
[368661246,1751273433215,-2257.27,0.0001819,2]
[368661247,1751273433224,-460.0,0.0001819,2]
[368661248,1751273433233,-365.90681358,0.0001819,2]
[368661255,1751273438675,-94.09318642,0.0001819,2]
[368661256,1751273438685,-460.0,0.0001819,2]
[368661257,1751273438695,-467.12,0.0001819,2]
[368661258,1751273438705,-354.50131613,0.0001819,2]
[368661259,1751273438717,-105.49868387,0.0001819,2]
[368661260,1751273438727,-460.0,0.0001819,2]
[368661261,1751273438736,-181.27285946,0.0001819,2]
[368661262,1751273438748,-278.72714054,0.0001819,2]
[368661264,1751273438758,-460.0,0.0001819,2]
[368661266,1751273438767,-460.0,0.0001819,2]
[368661268,1751273438777,-460.0,0.0001819,2]
[368661269,1751273438786,-460.0,0.0001819,2]
[368661270,1751273438796,-569.41,0.0001819,2]
[368661271,1751273438805,-460.0,0.00018191,2]
[368661273,1751273438815,-642.59,0.00018191,2]
[368661275,1751273438826,-460.0,0.00018191,2]
[368661276,1751273438835,-460.0,0.00018191,2]
[368661277,1751273438844,-500.0,0.00018191,2]
[368661278,1751273438854,-460.0,0.00018191,2]
[368661279,1751273438863,-460.0,0.00018192,2]
[368661281,1751273438873,-460.0,0.00018192,2]
[368661282,1751273438882,-222.09135595,0.00018192,2]
[368661283,1751273438952,-268.81864405,0.00018192,2]
[368661284,1751273438961,-13.60142412,0.00018192,2]
[368661299,1751273440555,-820.44,0.00018189,2]
[368661300,1751273440565,-476.69,0.00018189,2]
[368661301,1751273440575,-155.0,0.0001819,2]
[368661302,1751273440585,-641.62,0.0001819,2]
[368661303,1751273440595,-135.32237262,0.00018192,2]
[368661304,1751273440607,-311.07620326,0.00018192,2]
[368661305,1751273440619,-280.36614992,0.00018192,2]
[368661306,1751273440632,-180.16280144,0.00018192,2]
[368661307,1751273440642,-289.30827221,0.00018192,2]
[368661308,1751273440655,-170.69172779,0.00018192,2]
[368661309,1751273440665,-460.0,0.00018192,2]
[368661310,1751273440674,-460.0,0.00018192,2]
[368661311,1751273440684,-460.0,0.00018192,2]
[368661312,1751273440693,-461.54556797,0.00018192,2]
[368661313,1751273440702,-460.0,0.00018192,2]
[368661314,1751273440712,-461.22633624,0.00018192,2]
[368661315,1751273440722,-460.0,0.00018192,2]
[368661316,1751273440731,-539.87,0.00018192,2]
[368661317,1751273440741,-460.0,0.00018192,2]
[368661318,1751273440751,-374.13155829,0.00018192,2]
[368661325,1751273443422,-85.86844171,0.00018192,2]
[368661326,1751273443432,-217.94215207,0.00018192,2]
[368661327,1751273443443,-242.05784793,0.00018192,2]
[368661328,1751273443453,-258.16610326,0.00018192,2]
[368661329,1751273446492,-45.30971473,0.00018192,2]
[368661330,1751273446502,-265.52578857,0.00018192,2]
[368661331,1751273446519,-234.47421143,0.00018192,2]
[368661332,1751273446529,-65.52578857,0.00018192,2]
[368661333,1751273541385,2400.32109275,0.00018018,2]
[368661334,1751273575231,6659.12682414,0.00017283,2]
[368661335,1751273575252,10000.0,0.00017283,2]
[368661336,1751273575274,8240.87317586,0.00017283,2]
[368661337,1751273726220,196.76271257,0.00018088,2]
[368661345,1751273935389,196.76271256,0.00018088,2]
[368661348,1751274024373,1365.60139901,0.00017875,2]
[368661349,1751274024395,1479.40912623,0.00017875,2]
[368661350,1751274025430,200.0,0.00021918,60]
[368661360,1751274264259,202.786007,0.00017188,2]
[368661363,1751274351767,8317.80486677,0.000179,3]
[368661364,1751274351789,10000.0,0.000179,3]
[368661365,1751274351811,10000.0,0.000179,3]
[368661366,1751274351839,10000.0,0.000179,3]
[368661367,1751274351860,10000.0,0.000179,3]
[368661368,1751274351883,10000.0,0.000179,3]
[368661369,1751274351907,10000.0,0.000179,3]
[368661370,1751274351931,10000.0,0.000179,3]
[368661371,1751274351957,42705.32701003,0.000179,3]
[368661373,1751274420074,268.483024,0.00013699,2]
[368661375,1751274432507,883.17,0.00021918,60]
[368661377,1751274495814,388.395877,0.00017188,2]
[368661379,1751274511911,1955.63166026,0.00017847,2]
[368661382,1751274554726,24900.0,0.00017189,2]
[368661387,1751274599814,227.9699502,0.00017189,2]
[368661415,1751274632537,-300.0,0.00018176,2]
[368661418,1751274632547,-195.46118763,0.00018176,2]
[368661424,1751274632601,-104.53881237,0.00018176,2]
[368661426,1751274632610,-300.0,0.00018176,2]
[368661428,1751274632620,-300.0,0.00018176,2]
[368661430,1751274632629,-5000.0,0.00018177,2]
[368661432,1751274632638,-207.4,0.00018177,2]
[368661434,1751274632647,-500.0,0.00018177,2]
[368661436,1751274632657,-1200.0,0.00018186,2]
[368661438,1751274632666,-460.0,0.00018187,2]
[368661440,1751274632675,-460.0,0.00018187,2]
[368661442,1751274632684,-580.0,0.00018187,2]
[368661444,1751274632694,-243.79264669,0.00018187,2]
[368661446,1751274632704,-460.0,0.00018187,2]
[368661448,1751274632713,-460.0,0.00018187,2]
[368661450,1751274632722,-460.0,0.00018187,2]
[368661452,1751274632733,-460.0,0.00018187,2]
[368661454,1751274632742,-460.0,0.00018187,2]
[368661456,1751274632751,-460.0,0.00018187,2]
[368661458,1751274632760,-460.0,0.00018187,2]
[368661460,1751274632770,-786.25,0.00018187,2]
[368661462,1751274632778,-460.0,0.00018187,2]
[368661464,1751274632788,-3532.7,0.00018187,2]
[368661466,1751274632797,-953.92,0.00018187,2]
[368661468,1751274632806,-460.0,0.00018187,2]
[368661470,1751274632816,-1026.59,0.00018187,2]
[368661472,1751274632825,-573.53,0.00018187,2]
[368661474,1751274632835,-460.0,0.00018187,2]
[368661476,1751274632844,-460.0,0.00018187,2]
[368661478,1751274632854,-460.0,0.00018187,2]
[368661480,1751274632863,-460.0,0.00018187,2]
[368661482,1751274632872,-1002.63,0.00018187,2]
[368661484,1751274632882,-460.0,0.00018187,2]
[368661486,1751274632892,-460.0,0.00018187,2]
[368661488,1751274632903,-1278.91,0.00018187,2]
[368661490,1751274632913,-460.0,0.00018187,2]
[368661492,1751274632923,-460.0,0.00018187,2]
[368661494,1751274632932,-495.37,0.00018187,2]
[368661496,1751274632943,-1152.66,0.00018187,2]
[368661498,1751274632952,-1915.1,0.00018187,2]
[368661500,1751274632962,-737.91,0.00018187,2]
[368661501,1751274632973,-460.0,0.00018187,2]
[368661502,1751274632982,-466.62,0.00018187,2]
[368661503,1751274632992,-469.53,0.00018187,2]
[368661504,1751274633001,-498.91,0.00018187,2]
[368661505,1751274633010,-500.0,0.00018187,2]
[368661506,1751274633020,-460.0,0.00018187,2]
[368661507,1751274633030,-460.0,0.00018187,2]
[368661508,1751274633040,-563.21,0.00018187,2]
[368661509,1751274633050,-527.84,0.00018187,2]
[368661510,1751274633060,-460.0,0.00018187,2]
[368661511,1751274633069,-830.77,0.00018187,2]
[368661512,1751274633079,-460.0,0.00018187,2]
[368661513,1751274633089,-460.0,0.00018187,2]
[368661514,1751274633098,-460.0,0.00018187,2]
[368661515,1751274633107,-460.0,0.00018187,2]
[368661516,1751274633117,-573.02239329,0.00018187,2]
[368661517,1751274633127,-460.0,0.00018187,2]
[368661518,1751274633137,-500.0,0.00018187,2]
[368661519,1751274633147,-500.0,0.00018187,2]
[368661520,1751274633156,-500.0,0.00018187,2]
[368661521,1751274633166,-500.0,0.00018187,2]
[368661522,1751274633176,-500.0,0.00018187,2]
[368661523,1751274633186,-500.0,0.00018187,2]
[368661524,1751274633196,-500.0,0.00018187,2]
[368661525,1751274633205,-374.0,0.00018187,2]
[368661526,1751274633215,-500.0,0.00018187,2]
[368661527,1751274633225,-500.0,0.00018187,2]
[368661528,1751274633234,-500.0,0.00018187,2]
[368661529,1751274633244,-460.0,0.00018188,2]
[368661530,1751274633253,-160.0,0.00018188,2]
[368661531,1751274633263,-460.0,0.00018189,2]
[368661532,1751274633273,-296.03316363,0.00018189,2]
[368661533,1751274633283,-460.0,0.00018189,2]
[368661534,1751274633293,-460.0,0.00018189,2]
[368661535,1751274633303,-460.0,0.00018189,2]
[368661536,1751274633313,-460.0,0.00018189,2]
[368661537,1751274633324,-460.0,0.00018189,2]
[368661538,1751274633333,-460.0,0.00018189,2]
[368661539,1751274633343,-496.29,0.00018189,2]
[368661540,1751274633353,-545.69,0.00018189,2]
[368661541,1751274633363,-460.0,0.00018189,2]
[368661542,1751274633373,-987.33,0.00018189,2]
[368661543,1751274633383,-460.0,0.00018189,2]
[368661544,1751274633392,-460.0,0.00018189,2]
[368661545,1751274633402,-712.32,0.00018189,2]
[368661546,1751274633411,-460.0,0.00018189,2]
[368661547,1751274633421,-571.54,0.00018189,2]
[368661548,1751274633431,-517.37,0.00018189,2]
[368661549,1751274633441,-2247.3,0.00018189,2]
[368661550,1751274633451,-460.0,0.00018189,2]
[368661551,1751274633461,-460.0,0.00018189,2]
[368661552,1751274633472,-653.22,0.00018189,2]
[368661553,1751274633482,-460.0,0.0001819,2]
[368661554,1751274633492,-173.72285227,0.0001819,2]
[368661555,1751274633502,-460.0,0.0001819,2]
[368661556,1751274633512,-460.0,0.0001819,2]
[368661557,1751274633522,-500.0,0.0001819,2]
[368661558,1751274633532,-460.0,0.0001819,2]
[368661559,1751274633541,-460.0,0.0001819,2]
[368661560,1751274633551,-274.88250322,0.0001819,2]
[368661561,1751274633561,-460.0,0.0001819,2]
[368661562,1751274633571,-460.0,0.0001819,2]
[368661563,1751274633580,-460.0,0.0001819,2]
[368661564,1751274633591,-477.64391194,0.0001819,2]
[368661565,1751274633601,-460.0,0.0001819,2]
[368661566,1751274633611,-460.0,0.0001819,2]
[368661567,1751274633621,-460.0,0.0001819,2]
[368661568,1751274633631,-439.76355399,0.0001819,2]
[368661569,1751274633640,-460.0,0.0001819,2]
[368661570,1751274633650,-460.0,0.0001819,2]
[368661571,1751274633660,-460.0,0.0001819,2]
[368661572,1751274633669,-460.0,0.0001819,2]
[368661573,1751274633679,-500.0,0.00018191,2]
[368661574,1751274633688,-460.0,0.00018192,2]
[368661575,1751274633699,-500.0,0.00018192,2]
[368661576,1751274633709,-500.0,0.00018192,2]
[368661577,1751274633718,-3332.28068009,0.000183,3]
[368661578,1751274633731,-5105.20194234,0.000183,3]
[368661579,1751274633743,-32966.02720857,0.000183,3]
[368661580,1751274633753,-847.41730813,0.000183,3]
[368661581,1751274633762,-213.84631524,0.000183,3]
[368661582,1751274633772,-178.0,0.00018322,2]
[368661583,1751274633781,-178.0,0.00018412,2]
[368661584,1751274633791,-460.0,0.00018461,2]
[368661585,1751274633800,-786.25,0.00018461,2]
[368661586,1751274633810,-460.0,0.00018461,2]
[368661587,1751274633820,-3532.7,0.00018461,2]
[368661588,1751274633830,-179.07,0.00018461,2]
[368661589,1751274633839,-953.92,0.00018461,2]
[368661590,1751274633849,-1026.59,0.00018461,2]
[368661591,1751274633859,-460.0,0.00018461,2]
[368661592,1751274633869,-358.24,0.00018461,2]
[368661593,1751274633879,-460.0,0.00018461,2]
[368661594,1751274633889,-1002.63,0.00018461,2]
[368661595,1751274633905,-460.0,0.00018461,2]
[368661596,1751274633914,-460.0,0.00018461,2]
[368661597,1751274633924,-1278.91,0.00018461,2]
[368661598,1751274633934,-495.37,0.00018461,2]
[368661599,1751274633945,-1152.66,0.00018461,2]
[368661600,1751274633955,-1915.1,0.00018461,2]
[368661601,1751274633964,-737.91,0.00018461,2]
[368661602,1751274633974,-466.62,0.00018461,2]
[368661603,1751274633983,-469.53,0.00018461,2]
[368661604,1751274633994,-498.91,0.00018461,2]
[368661605,1751274634003,-460.0,0.00018461,2]
[368661606,1751274634013,-460.0,0.00018461,2]
[368661607,1751274634023,-563.21,0.00018461,2]
[368661608,1751274634033,-830.77,0.00018461,2]
[368661609,1751274634043,-460.0,0.00018461,2]
[368661610,1751274634053,-180.0,0.00018463,2]
[368661611,1751274634063,-460.0,0.00018463,2]
[368661612,1751274634074,-460.0,0.00018463,2]
[368661613,1751274634083,-460.0,0.00018463,2]
[368661614,1751274634094,-496.29,0.00018463,2]
[368661615,1751274634105,-545.69,0.00018463,2]
[368661616,1751274634115,-460.0,0.00018463,2]
[368661617,1751274634125,-987.33,0.00018463,2]
[368661618,1751274634135,-460.0,0.00018463,2]
[368661619,1751274634144,-460.0,0.00018463,2]
[368661620,1751274634154,-712.32,0.00018463,2]
[368661621,1751274634164,-517.37,0.00018463,2]
[368661622,1751274634173,-2247.3,0.00018463,2]
[368661623,1751274634184,-183.59,0.00018463,2]
[368661624,1751274634194,-460.0,0.00018463,2]
[368661625,1751274634203,-653.22,0.00018463,2]
[368661626,1751274634214,-460.0,0.00018464,2]
[368661627,1751274634223,-431.40320244,0.00018464,2]
[368661628,1751274634232,-460.0,0.00018464,2]
[368661629,1751274634242,-460.0,0.00018464,2]
[368661630,1751274634251,-317.0,0.00018504,2]
[368661631,1751274634261,-399.91535061,0.00018576,2]
[368661632,1751274634271,-317.0,0.00018623,2]
[368661633,1751274634281,-224.95965657,0.0001863,3]
[368661634,1751274634290,-1887.36593362,0.00018638,2]
[368661635,1751274634300,-317.0,0.00018658,2]
[368661636,1751274634309,-317.0,0.0001868,2]
[368661637,1751274634319,-355.1354872,0.000187,2]
[368661638,1751274634329,-153.0,0.000187,2]
[368661639,1751274634339,-575.4102369,0.000187,2]
[368661640,1751274634349,-177.5677436,0.000187,2]
[368661641,1751274634359,-153.0,0.000187,2]
[368661642,1751274634368,-1157.2848495,0.000187,2]
[368661643,1751274634378,-575.4102369,0.000187,2]
[368661644,1751274634387,-153.0,0.000187,2]
[368661645,1751274634397,-153.0,0.000187,2]
[368661646,1751274634406,-177.5677436,0.000187,2]
[368661647,1751274634416,-177.5677436,0.000187,2]
[368661648,1751274634426,-14.08802088,0.000187,2]
[368661655,1751274638435,-620.433025,0.000187,2]
[368661656,1751274638447,-448.69954262,0.000187,2]
[368661657,1751274638456,-732.4710557,0.000187,2]
[368661658,1751274638466,-299.81472913,0.000187,2]
[368661659,1751274638486,-275.40299107,0.000187,2]
[368661660,1751274638496,-366.3004382,0.000187,2]
[368661661,1751274638505,-366.3004382,0.000187,2]
[368661662,1751274638514,-366.3004382,0.000187,2]
[368661663,1751274638523,-366.3004382,0.000187,2]
[368661664,1751274638532,-366.3004382,0.000187,2]
[368661665,1751274638541,-341.9705774,0.000187,2]
[368661666,1751274638550,-154.6867203,0.000187,2]
[368661667,1751274638559,-240.919935,0.00018712,2]
[368661668,1751274638568,-386.16,0.00018727,3]
[368661669,1751274638577,-460.0,0.00018735,2]
[368661670,1751274638586,-786.25,0.00018735,2]
[368661671,1751274638596,-460.0,0.00018735,2]
[368661672,1751274638605,-3532.7,0.00018735,2]
[368661673,1751274638614,-953.92,0.00018735,2]
[368661674,1751274638624,-1026.59,0.00018735,2]
[368661675,1751274638633,-460.0,0.00018735,2]
[368661676,1751274638642,-460.0,0.00018735,2]
[368661677,1751274638651,-1002.63,0.00018735,2]
[368661678,1751274638661,-460.0,0.00018735,2]
[368661679,1751274638669,-460.0,0.00018735,2]
[368661680,1751274638679,-1278.91,0.00018735,2]
[368661681,1751274638688,-495.37,0.00018735,2]
[368661682,1751274638697,-1152.66,0.00018735,2]
[368661683,1751274638707,-1915.1,0.00018735,2]
[368661684,1751274638716,-737.91,0.00018735,2]
[368661685,1751274638725,-466.62,0.00018735,2]
[368661686,1751274638735,-469.53,0.00018735,2]
[368661687,1751274638744,-498.91,0.00018735,2]
[368661688,1751274638754,-563.21,0.00018735,2]
[368661689,1751274638763,-830.77,0.00018735,2]
[368661690,1751274638773,-460.0,0.00018735,2]
[368661691,1751274638782,-150.81862345,0.00018737,2]
[368661692,1751274638791,-350.66559468,0.00018737,2]
[368661693,1751274638800,-460.0,0.00018737,2]
[368661694,1751274638809,-496.29,0.00018737,2]
[368661695,1751274638818,-545.69,0.00018737,2]
[368661696,1751274638827,-460.0,0.00018737,2]
[368661697,1751274638837,-987.33,0.00018737,2]
[368661698,1751274638846,-460.0,0.00018737,2]
[368661699,1751274638856,-712.32,0.00018737,2]
[368661700,1751274638865,-517.37,0.00018737,2]
[368661701,1751274638874,-2247.3,0.00018737,2]
[368661702,1751274638883,-460.0,0.00018737,2]
[368661703,1751274638892,-653.22,0.00018737,2]
[368661704,1751274638904,-460.0,0.00018738,2]
[368661705,1751274638913,-460.0,0.00018738,2]
[368661706,1751274638923,-317.0,0.00018782,2]
[368661707,1751274638932,-317.0,0.00018861,2]
[368661708,1751274638944,-4604.94239611,0.000189,2]
[368661709,1751274638953,-3657.60750167,0.000189,2]
[368661710,1751274638963,-1549.0,0.00018956,2]
[368661711,1751274638974,-1549.0,0.00018978,2]
[368661712,1751274638984,-5429.20494266,0.00019,2]
[368661713,1751274638993,-460.0,0.00019009,2]
[368661714,1751274639002,-786.25,0.00019009,2]
[368661715,1751274639012,-460.0,0.00019009,2]
[368661716,1751274639021,-3532.7,0.00019009,2]
[368661717,1751274639031,-953.92,0.00019009,2]
[368661718,1751274639040,-1026.59,0.00019009,2]
[368661719,1751274639050,-242.53878253,0.00019009,2]
[368661720,1751274639059,-460.0,0.00019009,2]
[368661721,1751274639069,-1002.63,0.00019009,2]
[368661723,1751274639079,-460.0,0.00019009,2]
[368661724,1751274639088,-460.0,0.00019009,2]
[368661726,1751274639097,-1278.91,0.00019009,2]
[368661727,1751274639106,-495.37,0.00019009,2]
[368661729,1751274639115,-1152.66,0.00019009,2]
[368661731,1751274639125,-1915.1,0.00019009,2]
[368661733,1751274639135,-737.91,0.00019009,2]
[368661734,1751274639145,-466.62,0.00019009,2]
[368661735,1751274639154,-469.53,0.00019009,2]
[368661736,1751274639164,-498.91,0.00019009,2]
[368661737,1751274639174,-563.21,0.00019009,2]
[368661738,1751274639183,-830.77,0.00019009,2]
[368661739,1751274639193,-460.0,0.00019009,2]
[368661740,1751274639202,-496.29,0.00019011,2]
[368661741,1751274639211,-545.69,0.00019011,2]
[368661742,1751274639221,-460.0,0.00019011,2]
[368661743,1751274639230,-987.33,0.00019011,2]
[368661744,1751274639240,-460.0,0.00019011,2]
[368661745,1751274639249,-712.32,0.00019011,2]
[368661746,1751274639258,-517.37,0.00019011,2]
[368661747,1751274639268,-2247.3,0.00019011,2]
[368661748,1751274639278,-460.0,0.00019011,2]
[368661749,1751274639287,-653.22,0.00019011,2]
[368661750,1751274639296,-460.0,0.00019012,2]
[368661751,1751274639306,-446.0,0.00019039,2]
[368661752,1751274639316,-1000.0,0.00019053,5]
[368661753,1751274639325,-837.16779106,0.00019084,2]
[368661754,1751274639336,-12569.13231816,0.00019084,2]
[368661755,1751274639346,-213.84631524,0.00019084,2]
[368661756,1751274639356,-160.0,0.00019084,2]
[368661757,1751274639365,-230.31346914,0.00019084,2]
[368661758,1751274639375,-160.0,0.00019084,2]
[368661759,1751274639384,-160.0,0.00019084,2]
[368661760,1751274639394,-214.99848635,0.00019084,2]
[368661761,1751274639403,-160.0,0.00019084,2]
[368661762,1751274639412,-160.0,0.00019084,2]
[368661763,1751274639421,-847.41730813,0.00019084,2]
[368661764,1751274639432,-4604.94239583,0.00019107,2]
[368661765,1751274639441,-151.0,0.00019107,2]
[368661766,1751274639451,-294.397675,0.00019107,2]
[368661767,1751274639460,-151.0,0.00019107,2]
[368661768,1751274639470,-267.308168,0.00019107,2]
[368661769,1751274639479,-151.0,0.00019107,2]
[368661770,1751274639488,-151.442658,0.00019107,2]
[368661771,1751274639498,-152.30005,0.00019107,2]
[368661772,1751274639507,-151.0,0.00019107,2]
[368661773,1751274639517,-151.0,0.00019107,2]
[368661774,1751274639526,-151.0,0.00019107,2]
[368661775,1751274639536,-151.0,0.00019107,2]
[368661776,1751274639545,-151.0,0.00019107,2]
[368661777,1751274639554,-151.0,0.00019107,2]
[368661778,1751274639564,-151.0,0.00019107,2]
[368661779,1751274639574,-151.0,0.00019107,2]
[368661780,1751274639584,-151.0,0.00019107,2]
[368661781,1751274639593,-151.0,0.00019107,2]
[368661782,1751274639603,-446.0,0.00019131,2]
[368661783,1751274639612,-446.0,0.00019154,2]
[368661784,1751274639622,-376.10227884,0.00019164,2]
[368661785,1751274639632,-1887.3659336,0.00019167,2]
[368661786,1751274639641,-174.7424452,0.00019178,2]
[368661787,1751274639650,-586.37999,0.00019178,2]
[368661788,1751274639660,-3261.52246157,0.00019184,2]
[368661789,1751274639673,-2910.01136851,0.00019184,2]
[368661790,1751274639684,-42808.24205917,0.00019184,2]
[368661791,1751274639695,-20585.33481777,0.00019184,2]
[368661792,1751274639706,-1438.43779679,0.00019184,2]
[368661793,1751274639717,-974.5845965,0.00019184,2]
[368661798,1751274643501,-500.0,0.00018186,2]
[368661799,1751274643512,-239.63075264,0.00018186,2]
[368661800,1751274643521,-500.0,0.00018186,2]
[368661801,1751274643530,-500.0,0.00018186,2]
[368661802,1751274643539,-500.0,0.00018186,2]
[368661803,1751274643549,-500.0,0.00018186,2]
[368661804,1751274643559,-500.0,0.00018186,2]
[368661805,1751274643568,-500.0,0.00018186,2]
[368661806,1751274643577,-500.0,0.00018186,2]
[368661807,1751274643586,-500.0,0.00018186,2]
[368661808,1751274643595,-486.0,0.00018186,2]
[368661809,1751274643605,-500.0,0.00018186,2]
[368661810,1751274643614,-500.0,0.00018186,2]
[368661811,1751274643623,-500.0,0.00018186,2]
[368661812,1751274643632,-348.24500822,0.00018186,2]
[368661813,1751274643641,-500.0,0.00018186,2]
[368661814,1751274643652,-500.0,0.00018186,2]
[368661815,1751274643661,-324.17504088,0.00018186,2]
[368661816,1751274643670,-500.0,0.00018186,2]
[368661817,1751274643679,-500.0,0.00018186,2]
[368661818,1751274643689,-500.0,0.00018186,2]
[368661819,1751274643699,-500.0,0.00018186,2]
[368661820,1751274643709,-500.0,0.00018186,2]
[368661821,1751274643718,-500.0,0.00018186,2]
[368661822,1751274643728,-500.0,0.00018186,2]
[368661823,1751274643737,-500.0,0.00018186,2]
[368661824,1751274643746,-500.0,0.00018186,2]
[368661825,1751274643755,-500.0,0.00018186,2]
[368661826,1751274643764,-406.59293801,0.00018186,2]
[368661827,1751274643774,-500.0,0.00018186,2]
[368661828,1751274643784,-500.0,0.00018186,2]
[368661829,1751274643793,-500.0,0.00018186,2]
[368661830,1751274643803,-152.47204382,0.00018186,2]
[368661831,1751274643812,-500.0,0.00018186,2]
[368661832,1751274643822,-500.0,0.00018186,2]